Workbook

Sheet Innehållsförteckning
B8: Bortfall i cancerregistret vid jämförelse med dödsorsaksintyg
B10: Faktablad om statistiken | C10: https://www.socialstyrelsen.se/statistik-och-data/register/alla-register/cancerregistret/
B11: Om statistiken
B12: DCI per diagnosår | C12: Tabell 1 och Figur 1
B13: DCI som andel av dödsfall | C13: Tabell 2 och Figur 2
B14: DCI per diagnosgrupp | C14: Tabell 3 och Figur 3
B15: DCI per år och diagnosgrupp | C15: Tabell 4 och Figur 4 A-C
B16: DCI per ICD-avsnitt | C16: Tabell 5

Sheet Om statistiken
A1: Material och metod
A3: Siffrorna i denna bilaga använder algoritmen som beskrivs i det tillhörande faktabladet. Kortfattat försöker man identifera cancer som saknas i cancerregistret genom att i dödsorsaksregistret identifiera cancer som underliggande eller bidragande dödsorsak. I nästa steg jämförs varje dödsorsak mot cancerregistret för att se om en matchande diagnos registrerats, vid någon tidpunkt före dödsfallet. När matchande diagnos saknas i cancerregistret klassas dödsorsaken som en ”Death Certificate Notification” (DCN) om cancer. För varje DCN söks en matchande diagnos i patientregistret, öppen- eller slutenvård, någonsin innan dödsfallet. Om en matchande diagnos finns anses detta vara en bekräftad Death Certificate Initiated cancer (DCI), annars räknas dödsorsaken som obekräftad cancer: Death Certificate Only (DCO). Vad som bör anses vara en matchande diagnos definieras i tabell i faktabladet. Det finns ofta flera matchande diagnoser i patientregistret per dödsorsak; för DCI användes den senaste angivna matchande diagnoskoden. I cancerregistret sätts diagnosdatum som datum för den första undersökningen i den vårdkedja som ledde fram till diagnosen. För att emulera detta för DCI användes inskrivningsdatum för det första vårdtillfälle i patientregistret då en matchande diagnos hade registrerats.

Sheet DCI per diagnosår
A1: Tabell 1. Antal nya cancerfall registrerade i cancerregistret eller dödsorsaksregistret, 2005-2019
A2: Number of new cancers recorded in the cancer or cause of death register, 2005-2019
A6: År | B6: Cancerregistret | C6: DCI* | D6: DCO | E6: Cancerregistret+DCI | F6: Ökning med DCI, %
A7: 2005 | B7: 52236 | C7: 4743 | D7: 2087 | E7: =B7+C7 -> 56979 | F7: =C7/B7 -> 0.09079944866
A8: 2006 | B8: 52785 | C8: 5073 | D8: 2128 | E8: =B8+C8 -> 57858 | F8: =C8/B8 -> 0.09610684854
A9: 2007 | B9: 52709 | C9: 4692 | D9: 2060 | E9: 57401 | F9: 0.08901705591
A10: 2008 | B10: 54079 | C10: 4609 | D10: 1899 | E10: 58688 | F10: 0.08522716766
A11: 2009 | B11: 57378 | C11: 4291 | D11: 1757 | E11: 61669 | F11: 0.07478476071
A12: 2010 | B12: 57943 | C12: 4260 | D12: 1652 | E12: 62203 | F12: 0.0735205288
A13: 2011 | B13: 60302 | C13: 4083 | D13: 1647 | E13: 64385 | F13: 0.06770919704
A14: 2012 | B14: 60034 | C14: 3979 | D14: 1700 | E14: 64013 | F14: 0.06627910851
A15: 2013 | B15: 63446 | C15: 3993 | D15: 1715 | E15: 67439 | F15: 0.06293540964
A16: 2014 | B16: 66912 | C16: 3799 | D16: 1674 | E16: 70711 | F16: 0.05677606408
A17: 2015 | B17: 67069 | C17: 3739 | D17: 1796 | E17: 70808 | F17: 0.05574855746
A18: 2016 | B18: 68114 | C18: 3554 | D18: 1636 | E18: 71668 | F18: 0.05217723229
A19: 2017 | B19: 69760 | C19: 3491 | D19: 1644 | E19: 73251 | F19: 0.05004300459
A20: 2018 | B20: 70994 | C20: 3216 | D20: 1713 | E20: 74210 | F20: 0.04529960278
A21: 2019 | B21: 71731 | C21: 2307 | D21: 1534 | E21: =B21+C21 -> 74038 | F21: =C21/B21 -> 0.03216182683
A22: Källa: cancerregistret, dödsorsaksregistret, patientregistret, Socialstyrelsen
A23: * Daterade efter diagnosår i patientregistret

Sheet DCI som andel av dödsfall
A1: Tabell 2. DCI som andel av alla dödsfall, 2005-2019
A2: Proportion DCI among all deaths, 2005-2019
A6: År | B6: Cancerregistret | C6: DCI* | D6: Cancerregistret+DCI* | E6: Ökning med DCI*, % | F6: Dödsfall,** totalt | G6: DCI som andel av dödsfall, %
A7: 2005 | B7: 52236 | C7: 5768 | D7: =B7+C7 -> 58004 | E7: =C7/B7 -> 0.1104219312 | F7: 90936 | G7: =C7/F7 -> 0.06342922495
A8: 2006 | B8: 52785 | C8: 5771 | D8: =B8+C8 -> 58556 | E8: =C8/B8 -> 0.1093303022 | F8: 90503 | G8: =C8/F8 -> 0.06376584202
A9: 2007 | B9: 52709 | C9: 5623 | D9: 58332 | E9: 0.1066800736 | F9: 91149 | G9: 0.06169019956
A10: 2008 | B10: 54079 | C10: 5538 | D10: 59617 | E10: 0.1024057398 | F10: 91012 | G10: 0.0608491188
A11: 2009 | B11: 57378 | C11: 5360 | D11: 62738 | E11: 0.09341559483 | F11: 89620 | G11: 0.05980807855
A12: 2010 | B12: 57943 | C12: 5060 | D12: 63003 | E12: 0.08732720087 | F12: 90111 | G12: 0.0561529669
A13: 2011 | B13: 60302 | C13: 4990 | D13: 65292 | E13: 0.08275015754 | F13: 89513 | G13: 0.05574609275
A14: 2012 | B14: 60034 | C14: 5047 | D14: 65081 | E14: 0.08406902755 | F14: 91592 | G14: 0.05510306577
A15: 2013 | B15: 63446 | C15: 4928 | D15: 68374 | E15: 0.07767235129 | F15: 90084 | G15: 0.05470449802
A16: 2014 | B16: 66912 | C16: 4700 | D16: 71612 | E16: 0.07024151124 | F16: 88624 | G16: 0.05303303845
A17: 2015 | B17: 67069 | C17: 4695 | D17: 71764 | E17: 0.0700025347 | F17: 90097 | G17: 0.05211050312
A18: 2016 | B18: 68114 | C18: 4484 | D18: 72598 | E18: 0.06583081305 | F18: 89164 | G18: 0.05028935445
A19: 2017 | B19: 69760 | C19: 4655 | D19: 74415 | E19: 0.0667287844 | F19: 89908 | G19: 0.05177514793
A20: 2018 | B20: 70994 | C20: 4603 | D20: 75597 | E20: 0.06483646505 | F20: 89839 | G20: 0.05123610013
A21: 2019 | B21: 71731 | C21: 4627 | D21: =B21+C21 -> 76358 | E21: =C21/B21 -> 0.06450488631 | F21: 86188 | G21: =C21/F21 -> 0.05368496774
A22: Källa: cancerregistret, dödsorsaksregistret, patientregistret, Socialstyrelsen
A23: * DCI daterade efter dödsår, inte diagnosår.
A24: ** Total antal dösfall per år, oavsett dödsorsak

Sheet DCI per diagnosgrupp
A1: Tabell 3. Antal nya cancerfall per diagnosgrupp, registrerade i cancerregistret eller dödsorsaksregistret, 2005-2019
A2: Number of new cancers recorded in the cancer or cause of death register, by diagnostic grouping, 2005-2019
A6: Diagnosgrupp | B6: Cancerregistret | C6: DCI* | D6: DCO | E6: Cancerregistret+DCI | F6: Ökning med DCI, %
A7: Melanom och andra maligna tumörer i huden | B7: 143558 | C7: 1121 | D7: 471 | E7: =B7+C7 -> 144679 | F7: =C7/B7 -> 0.007808690564
A8: Tyreoidea och andra endokrina körtlar | B8: 22960 | C8: 261 | D8: 141 | E8: =B8+C8 -> 23221 | F8: =C8/B8 -> 0.01136759582
A9: Bröstkörtel | B9: 131214 | C9: 1518 | D9: 1909 | E9: 132732 | F9: 0.01156888747
A10: Läpp, munhåla och svalg | B10: 16449 | C10: 204 | D10: 150 | E10: 16653 | F10: 0.01240196972
A11: Kvinnliga könsorganen | B11: 44547 | C11: 1102 | D11: 1348 | E11: 45649 | F11: 0.02473791726
A12: Manliga könsorganen | B12: 158379 | C12: 4326 | D12: 1606 | E12: 162705 | F12: 0.02731422726
A13: Urinorganen | B13: 62527 | C13: 3367 | D13: 1201 | E13: 65894 | F13: 0.05384873735
A14: Lymfatisk, blodbildande och besläktad vävnad | B14: 60831 | C14: 3571 | D14: 1140 | E14: 64402 | F14: 0.05870362151
A15: Öga, hjärnan och andra delar av centrala nervsystemet | B15: 23718 | C15: 2502 | D15: 416 | E15: 26220 | F15: 0.1054895016
A16: Andningsorganen och brösthålans organ | B16: 66311 | C16: 7262 | D16: 3172 | E16: 73573 | F16: 0.1095142586
A17: Matsmältningsorganen | B17: 157653 | C17: 17966 | D17: 6193 | E17: 175619 | F17: 0.1139591381
A18: Ben och ledbrosk | B18: 1197 | C18: 146 | D18: 145 | E18: 1343 | F18: 0.1219715957
A19: Mesotelial (kroppshåletäckande) vävnad och mjukvävnad | B19: 6049 | C19: 1094 | D19: 374 | E19: 7143 | F19: 0.1808563399
A20: Tumörer av osäker eller okänd natur | B20: 12218 | C20: 3347 | D20: 1138 | E20: 15565 | F20: 0.2739400884
A21: Ofullständigt angivna, sekundära och icke specificerade lokalisationer | B21: 17881 | C21: 12042 | D21: 7238 | E21: =B21+C21 -> 29923 | F21: =C21/B21 -> 0.6734522678
A22: Källa: cancerregistret, dödsorsaksregistret, patientregistret, Socialstyrelsen
A23: * Daterade efter diagnosår i patientregistret

Sheet DCI per år och diagnosgrupp
A1: Tabell 4. Antal nya cancerfall per år och diagnosgrupp, registrerade i cancerregistret eller dödsorsaksregistret, 2005-2019
A2: Number of new cancers recorded in the cancer or cause of death register, by diagnostic grouping and year, 2005-2019
A6: Diagnosgrupp | B6: År | C6: Cancerregistret | D6: DCI* | E6: DCO | F6: Cancerregistret+DCI | G6: Ökning med DCI, %
A7: Malign tumör i bröstkörtel | B7: 2005 | C7: 7053 | D7: 231 | E7: 178 | F7: =C7+D7 -> 7284 | G7: =D7/C7 -> 0.03275202042
A8: Malign tumör i bröstkörtel | B8: 2006 | C8: 7214 | D8: 202 | E8: 162 | F8: =C8+D8 -> 7416 | G8: =D8/C8 -> 0.02800110895
A9: Malign tumör i bröstkörtel | B9: 2007 | C9: 7236 | D9: 178 | E9: 185 | F9: 7414 | G9: 0.02459922609
A10: Malign tumör i bröstkörtel | B10: 2008 | C10: 7518 | D10: 137 | E10: 172 | F10: 7655 | G10: 0.01822293163
A11: Malign tumör i bröstkörtel | B11: 2009 | C11: 7514 | D11: 107 | E11: 139 | F11: 7621 | G11: 0.01424008517
A12: Malign tumör i bröstkörtel | B12: 2010 | C12: 8018 | D12: 112 | E12: 128 | F12: 8130 | G12: 0.01396857072
A13: Malign tumör i bröstkörtel | B13: 2011 | C13: 8519 | D13: 97 | E13: 130 | F13: 8616 | G13: 0.01138631295
A14: Malign tumör i bröstkörtel | B14: 2012 | C14: 8644 | D14: 86 | E14: 123 | F14: 8730 | G14: 0.00994909764
A15: Malign tumör i bröstkörtel | B15: 2013 | C15: 9266 | D15: 76 | E15: 142 | F15: 9342 | G15: 0.008202028923
A16: Malign tumör i bröstkörtel | B16: 2014 | C16: 9832 | D16: 51 | E16: 101 | F16: 9883 | G16: 0.00518714402
A17: Malign tumör i bröstkörtel | B17: 2015 | C17: 9483 | D17: 69 | E17: 102 | F17: 9552 | G17: 0.007276178425
A18: Malign tumör i bröstkörtel | B18: 2016 | C18: 9227 | D18: 65 | E18: 99 | F18: 9292 | G18: 0.007044543188
A19: Malign tumör i bröstkörtel | B19: 2017 | C19: 10599 | D19: 58 | E19: 85 | F19: 10657 | G19: 0.00547221436
A20: Malign tumör i bröstkörtel | B20: 2018 | C20: 10198 | D20: 30 | E20: 101 | F20: 10228 | G20: 0.002941753285
A21: Malign tumör i bröstkörtel | B21: 2019 | C21: 10893 | D21: 19 | E21: 62 | F21: 10912 | G21: 0.00174423942
A22: Maligna tumörer i andningsorganen och brösthålans organ | B22: 2005 | C22: 3971 | D22: 479 | E22: 191 | F22: 4450 | G22: 0.1206245278
A23: Maligna tumörer i andningsorganen och brösthålans organ | B23: 2006 | C23: 3932 | D23: 500 | E23: 243 | F23: 4432 | G23: 0.1271617497
A24: Maligna tumörer i andningsorganen och brösthålans organ | B24: 2007 | C24: 4056 | D24: 547 | E24: 214 | F24: 4603 | G24: 0.1348619329
A25: Maligna tumörer i andningsorganen och brösthålans organ | B25: 2008 | C25: 4045 | D25: 489 | E25: 229 | F25: 4534 | G25: 0.1208899876
A26: Maligna tumörer i andningsorganen och brösthålans organ | B26: 2009 | C26: 4256 | D26: 480 | E26: 215 | F26: 4736 | G26: 0.1127819549
A27: Maligna tumörer i andningsorganen och brösthålans organ | B27: 2010 | C27: 4356 | D27: 476 | E27: 193 | F27: 4832 | G27: 0.1092745638
A28: Maligna tumörer i andningsorganen och brösthålans organ | B28: 2011 | C28: 4444 | D28: 473 | E28: 189 | F28: 4917 | G28: 0.1064356436
A29: Maligna tumörer i andningsorganen och brösthålans organ | B29: 2012 | C29: 4411 | D29: 436 | E29: 204 | F29: 4847 | G29: 0.09884379959
A30: Maligna tumörer i andningsorganen och brösthålans organ | B30: 2013 | C30: 4419 | D30: 514 | E30: 198 | F30: 4933 | G30: 0.1163159086
A31: Maligna tumörer i andningsorganen och brösthålans organ | B31: 2014 | C31: 4616 | D31: 475 | E31: 202 | F31: 5091 | G31: 0.1029029463
A32: Maligna tumörer i andningsorganen och brösthålans organ | B32: 2015 | C32: 4706 | D32: 492 | E32: 224 | F32: 5198 | G32: 0.1045473863
A33: Maligna tumörer i andningsorganen och brösthålans organ | B33: 2016 | C33: 4687 | D33: 524 | E33: 232 | F33: 5211 | G33: 0.1117985918
A34: Maligna tumörer i andningsorganen och brösthålans organ | B34: 2017 | C34: 4754 | D34: 501 | E34: 234 | F34: 5255 | G34: 0.105384939
A35: Maligna tumörer i andningsorganen och brösthålans organ | B35: 2018 | C35: 4986 | D35: 504 | E35: 224 | F35: 5490 | G35: 0.1010830325
A36: Maligna tumörer i andningsorganen och brösthålans organ | B36: 2019 | C36: 4672 | D36: 372 | E36: 180 | F36: 5044 | G36: 0.07962328767
A37: Maligna tumörer i ben och ledbrosk | B37: 2005 | C37: 68 | D37: 15 | E37: 11 | F37: 83 | G37: 0.2205882353
A38: Maligna tumörer i ben och ledbrosk | B38: 2006 | C38: 78 | D38: 15 | E38: 11 | F38: 93 | G38: 0.1923076923
A39: Maligna tumörer i ben och ledbrosk | B39: 2007 | C39: 76 | D39: 14 | E39: 16 | F39: 90 | G39: 0.1842105263
A40: Maligna tumörer i ben och ledbrosk | B40: 2008 | C40: 72 | D40: 12 | E40: 13 | F40: 84 | G40: 0.1666666667
A41: Maligna tumörer i ben och ledbrosk | B41: 2009 | C41: 87 | D41: 13 | E41: 7 | F41: 100 | G41: 0.1494252874
A42: Maligna tumörer i ben och ledbrosk | B42: 2010 | C42: 72 | D42: 9 | E42: 9 | F42: 81 | G42: 0.125
A43: Maligna tumörer i ben och ledbrosk | B43: 2011 | C43: 81 | D43: 7 | E43: 6 | F43: 88 | G43: 0.08641975309
A44: Maligna tumörer i ben och ledbrosk | B44: 2012 | C44: 75 | D44: 11 | E44: 12 | F44: 86 | G44: 0.1466666667
A45: Maligna tumörer i ben och ledbrosk | B45: 2013 | C45: 77 | D45: 12 | E45: 12 | F45: 89 | G45: 0.1558441558
A46: Maligna tumörer i ben och ledbrosk | B46: 2014 | C46: 77 | D46: 8 | E46: 7 | F46: 85 | G46: 0.1038961039
A47: Maligna tumörer i ben och ledbrosk | B47: 2015 | C47: 95 | D47: 7 | E47: 12 | F47: 102 | G47: 0.07368421053
A48: Maligna tumörer i ben och ledbrosk | B48: 2016 | C48: 82 | D48: 6 | E48: 8 | F48: 88 | G48: 0.07317073171
A49: Maligna tumörer i ben och ledbrosk | B49: 2017 | C49: 84 | D49: 8 | E49: 7 | F49: 92 | G49: 0.09523809524
A50: Maligna tumörer i ben och ledbrosk | B50: 2018 | C50: 87 | D50: 6 | E50: 7 | F50: 93 | G50: 0.06896551724
A51: Maligna tumörer i ben och ledbrosk | B51: 2019 | C51: 86 | D51: 3 | E51: 7 | F51: 89 | G51: 0.03488372093
A52: Maligna tumörer i de kvinnliga könsorganen | B52: 2005 | C52: 2881 | D52: 103 | E52: 123 | F52: 2984 | G52: 0.03575147518
A53: Maligna tumörer i de kvinnliga könsorganen | B53: 2006 | C53: 2884 | D53: 111 | E53: 106 | F53: 2995 | G53: 0.03848821082
A54: Maligna tumörer i de kvinnliga könsorganen | B54: 2007 | C54: 2914 | D54: 93 | E54: 116 | F54: 3007 | G54: 0.03191489362
A55: Maligna tumörer i de kvinnliga könsorganen | B55: 2008 | C55: 2930 | D55: 84 | E55: 92 | F55: 3014 | G55: 0.02866894198
A56: Maligna tumörer i de kvinnliga könsorganen | B56: 2009 | C56: 2987 | D56: 95 | E56: 99 | F56: 3082 | G56: 0.03180448611
A57: Maligna tumörer i de kvinnliga könsorganen | B57: 2010 | C57: 2894 | D57: 69 | E57: 95 | F57: 2963 | G57: 0.02384243262
A58: Maligna tumörer i de kvinnliga könsorganen | B58: 2011 | C58: 2857 | D58: 71 | E58: 85 | F58: 2928 | G58: 0.02485124256
A59: Maligna tumörer i de kvinnliga könsorganen | B59: 2012 | C59: 2905 | D59: 57 | E59: 83 | F59: 2962 | G59: 0.01962134251
A60: Maligna tumörer i de kvinnliga könsorganen | B60: 2013 | C60: 2985 | D60: 79 | E60: 91 | F60: 3064 | G60: 0.02646566164
A61: Maligna tumörer i de kvinnliga könsorganen | B61: 2014 | C61: 3055 | D61: 74 | E61: 94 | F61: 3129 | G61: 0.02422258592
A62: Maligna tumörer i de kvinnliga könsorganen | B62: 2015 | C62: 3071 | D62: 58 | E62: 62 | F62: 3129 | G62: 0.01888635624
A63: Maligna tumörer i de kvinnliga könsorganen | B63: 2016 | C63: 3065 | D63: 58 | E63: 77 | F63: 3123 | G63: 0.0189233279
A64: Maligna tumörer i de kvinnliga könsorganen | B64: 2017 | C64: 3086 | D64: 56 | E64: 82 | F64: 3142 | G64: 0.01814646792
A65: Maligna tumörer i de kvinnliga könsorganen | B65: 2018 | C65: 3005 | D65: 51 | E65: 68 | F65: 3056 | G65: 0.01697171381
A66: Maligna tumörer i de kvinnliga könsorganen | B66: 2019 | C66: 3028 | D66: 43 | E66: 75 | F66: 3071 | G66: 0.0142007926
A67: Maligna tumörer i de manliga könsorganen | B67: 2005 | C67: 10339 | D67: 428 | E67: 181 | F67: 10767 | G67: 0.04139665345
A68: Maligna tumörer i de manliga könsorganen | B68: 2006 | C68: 9848 | D68: 490 | E68: 163 | F68: 10338 | G68: 0.04975629569
A69: Maligna tumörer i de manliga könsorganen | B69: 2007 | C69: 9467 | D69: 397 | E69: 127 | F69: 9864 | G69: 0.04193514313
A70: Maligna tumörer i de manliga könsorganen | B70: 2008 | C70: 9333 | D70: 390 | E70: 118 | F70: 9723 | G70: 0.04178720669
A71: Maligna tumörer i de manliga könsorganen | B71: 2009 | C71: 11106 | D71: 376 | E71: 136 | F71: 11482 | G71: 0.03385557356
A72: Maligna tumörer i de manliga könsorganen | B72: 2010 | C72: 10303 | D72: 332 | E72: 109 | F72: =C72+D72 -> 10635 | G72: =D72/C72 -> 0.03222362419
A73: Maligna tumörer i de manliga könsorganen | B73: 2011 | C73: 10300 | D73: 301 | E73: 110 | F73: 10601 | G73: 0.02922330097
A74: Maligna tumörer i de manliga könsorganen | B74: 2012 | C74: 9613 | D74: 303 | E74: 87 | F74: 9916 | G74: 0.03151981691
A75: Maligna tumörer i de manliga könsorganen | B75: 2013 | C75: 10305 | D75: 240 | E75: 100 | F75: 10545 | G75: 0.02328966521
A76: Maligna tumörer i de manliga könsorganen | B76: 2014 | C76: 11627 | D76: 265 | E76: 88 | F76: 11892 | G76: 0.02279177776
A77: Maligna tumörer i de manliga könsorganen | B77: 2015 | C77: 11035 | D77: 242 | E77: 96 | F77: 11277 | G77: 0.02193022202
A78: Maligna tumörer i de manliga könsorganen | B78: 2016 | C78: 11142 | D78: 183 | E78: 85 | F78: 11325 | G78: 0.01642434033
A79: Maligna tumörer i de manliga könsorganen | B79: 2017 | C79: 10986 | D79: 170 | E79: 68 | F79: 11156 | G79: 0.01547423994
A80: Maligna tumörer i de manliga könsorganen | B80: 2018 | C80: 11493 | D80: 137 | E80: 87 | F80: 11630 | G80: 0.01192029931
A81: Maligna tumörer i de manliga könsorganen | B81: 2019 | C81: 11482 | D81: 72 | E81: 51 | F81: 11554 | G81: 0.00627068455
A82: Maligna tumörer i lymfatisk, blodbildande och besläktad vävnad | B82: 2005 | C82: 3441 | D82: 367 | E82: 70 | F82: 3808 | G82: 0.1066550421
A83: Maligna tumörer i lymfatisk, blodbildande och besläktad vävnad | B83: 2006 | C83: 3564 | D83: 406 | E83: 74 | F83: 3970 | G83: 0.1139169473
A84: Maligna tumörer i lymfatisk, blodbildande och besläktad vävnad | B84: 2007 | C84: 3531 | D84: 358 | E84: 82 | F84: 3889 | G84: 0.1013877089
A85: Maligna tumörer i lymfatisk, blodbildande och besläktad vävnad | B85: 2008 | C85: 3755 | D85: 278 | E85: 85 | F85: 4033 | G85: 0.07403462051
A86: Maligna tumörer i lymfatisk, blodbildande och besläktad vävnad | B86: 2009 | C86: 3710 | D86: 249 | E86: 64 | F86: 3959 | G86: 0.06711590296
A87: Maligna tumörer i lymfatisk, blodbildande och besläktad vävnad | B87: 2010 | C87: 3942 | D87: 275 | E87: 83 | F87: 4217 | G87: 0.06976154236
A88: Maligna tumörer i lymfatisk, blodbildande och besläktad vävnad | B88: 2011 | C88: 3966 | D88: 224 | E88: 64 | F88: 4190 | G88: 0.05648008069
A89: Maligna tumörer i lymfatisk, blodbildande och besläktad vävnad | B89: 2012 | C89: 4013 | D89: 222 | E89: 73 | F89: 4235 | G89: 0.05532020932
A90: Maligna tumörer i lymfatisk, blodbildande och besläktad vävnad | B90: 2013 | C90: 4203 | D90: 218 | E90: 81 | F90: 4421 | G90: 0.05186771354
A91: Maligna tumörer i lymfatisk, blodbildande och besläktad vävnad | B91: 2014 | C91: 4336 | D91: 197 | E91: 82 | F91: 4533 | G91: 0.04543357934
A92: Maligna tumörer i lymfatisk, blodbildande och besläktad vävnad | B92: 2015 | C92: 4369 | D92: 199 | E92: 87 | F92: 4568 | G92: 0.04554818036
A93: Maligna tumörer i lymfatisk, blodbildande och besläktad vävnad | B93: 2016 | C93: 4585 | D93: 172 | E93: 70 | F93: 4757 | G93: 0.03751363141
A94: Maligna tumörer i lymfatisk, blodbildande och besläktad vävnad | B94: 2017 | C94: 4673 | D94: 167 | E94: 73 | F94: 4840 | G94: 0.03573721378
A95: Maligna tumörer i lymfatisk, blodbildande och besläktad vävnad | B95: 2018 | C95: 4379 | D95: 140 | E95: 74 | F95: 4519 | G95: 0.03197076958
A96: Maligna tumörer i lymfatisk, blodbildande och besläktad vävnad | B96: 2019 | C96: 4364 | D96: 99 | E96: 78 | F96: 4463 | G96: 0.02268560953
A97: Maligna tumörer i läpp, munhåla och svalg | B97: 2005 | C97: 867 | D97: 17 | E97: 12 | F97: 884 | G97: 0.01960784314
A98: Maligna tumörer i läpp, munhåla och svalg | B98: 2006 | C98: 865 | D98: 26 | E98: 9 | F98: 891 | G98: 0.03005780347
A99: Maligna tumörer i läpp, munhåla och svalg | B99: 2007 | C99: 900 | D99: 23 | E99: 10 | F99: 923 | G99: 0.02555555556
A100: Maligna tumörer i läpp, munhåla och svalg | B100: 2008 | C100: 979 | D100: 18 | E100: 12 | F100: 997 | G100: 0.01838610827
A101: Maligna tumörer i läpp, munhåla och svalg | B101: 2009 | C101: 957 | D101: 14 | E101: 8 | F101: 971 | G101: 0.01462904911
A102: Maligna tumörer i läpp, munhåla och svalg | B102: 2010 | C102: 1005 | D102: 14 | E102: 8 | F102: 1019 | G102: 0.01393034826
A103: Maligna tumörer i läpp, munhåla och svalg | B103: 2011 | C103: 1070 | D103: 7 | E103: 9 | F103: 1077 | G103: 0.006542056075
A104: Maligna tumörer i läpp, munhåla och svalg | B104: 2012 | C104: 1106 | D104: 8 | E104: 9 | F104: 1114 | G104: 0.007233273056
A105: Maligna tumörer i läpp, munhåla och svalg | B105: 2013 | C105: 1127 | D105: 8 | E105: 8 | F105: 1135 | G105: 0.007098491571
A106: Maligna tumörer i läpp, munhåla och svalg | B106: 2014 | C106: 1240 | D106: 15 | E106: 2 | F106: 1255 | G106: 0.01209677419
A107: Maligna tumörer i läpp, munhåla och svalg | B107: 2015 | C107: 1201 | D107: 11 | E107: 16 | F107: 1212 | G107: 0.009159034138
A108: Maligna tumörer i läpp, munhåla och svalg | B108: 2016 | C108: 1294 | D108: 12 | E108: 15 | F108: 1306 | G108: 0.009273570325
A109: Maligna tumörer i läpp, munhåla och svalg | B109: 2017 | C109: 1232 | D109: 8 | E109: 17 | F109: 1240 | G109: 0.006493506494
A110: Maligna tumörer i läpp, munhåla och svalg | B110: 2018 | C110: 1265 | D110: 14 | E110: 8 | F110: 1279 | G110: 0.01106719368
A111: Maligna tumörer i läpp, munhåla och svalg | B111: 2019 | C111: 1341 | D111: 9 | E111: 7 | F111: 1350 | G111: 0.006711409396
A112: Maligna tumörer i matsmältningsorganen | B112: 2005 | C112: 9245 | D112: 1195 | E112: 530 | F112: 10440 | G112: 0.129259059
A113: Maligna tumörer i matsmältningsorganen | B113: 2006 | C113: 9214 | D113: 1416 | E113: 518 | F113: 10630 | G113: 0.1536791839
A114: Maligna tumörer i matsmältningsorganen | B114: 2007 | C114: 9478 | D114: 1303 | E114: 505 | F114: 10781 | G114: 0.1374762608
A115: Maligna tumörer i matsmältningsorganen | B115: 2008 | C115: 9408 | D115: 1426 | E115: 460 | F115: 10834 | G115: 0.1515731293
A116: Maligna tumörer i matsmältningsorganen | B116: 2009 | C116: 9844 | D116: 1303 | E116: 439 | F116: 11147 | G116: 0.1323648923
A117: Maligna tumörer i matsmältningsorganen | B117: 2010 | C117: 9936 | D117: 1291 | E117: 377 | F117: 11227 | G117: 0.129931562
A118: Maligna tumörer i matsmältningsorganen | B118: 2011 | C118: 10169 | D118: 1219 | E118: 398 | F118: 11388 | G118: 0.1198741272
A119: Maligna tumörer i matsmältningsorganen | B119: 2012 | C119: 10178 | D119: 1197 | E119: 389 | F119: 11375 | G119: 0.1176066025
A120: Maligna tumörer i matsmältningsorganen | B120: 2013 | C120: 10750 | D120: 1174 | E120: 402 | F120: 11924 | G120: 0.1092093023
A121: Maligna tumörer i matsmältningsorganen | B121: 2014 | C121: 10884 | D121: 1177 | E121: 371 | F121: 12061 | G121: 0.1081403896
A122: Maligna tumörer i matsmältningsorganen | B122: 2015 | C122: 11202 | D122: 1149 | E122: 390 | F122: 12351 | G122: 0.1025709695
A123: Maligna tumörer i matsmältningsorganen | B123: 2016 | C123: 11678 | D123: 1154 | E123: 353 | F123: 12832 | G123: 0.0988182908
A124: Maligna tumörer i matsmältningsorganen | B124: 2017 | C124: 11728 | D124: 1150 | E124: 353 | F124: 12878 | G124: 0.09805593452
A125: Maligna tumörer i matsmältningsorganen | B125: 2018 | C125: 11784 | D125: 1068 | E125: 357 | F125: 12852 | G125: 0.09063136456
A126: Maligna tumörer i matsmältningsorganen | B126: 2019 | C126: 12155 | D126: 744 | E126: 351 | F126: 12899 | G126: 0.06120937886
A127: Maligna tumörer i mesotelial (kroppshåletäckande) vävnad och mjukvävnad | B127: 2005 | C127: 420 | D127: 65 | E127: 28 | F127: 485 | G127: 0.1547619048
A128: Maligna tumörer i mesotelial (kroppshåletäckande) vävnad och mjukvävnad | B128: 2006 | C128: 344 | D128: 62 | E128: 25 | F128: 406 | G128: 0.1802325581
A129: Maligna tumörer i mesotelial (kroppshåletäckande) vävnad och mjukvävnad | B129: 2007 | C129: 377 | D129: 66 | E129: 32 | F129: 443 | G129: 0.175066313
A130: Maligna tumörer i mesotelial (kroppshåletäckande) vävnad och mjukvävnad | B130: 2008 | C130: 412 | D130: 76 | E130: 25 | F130: 488 | G130: 0.1844660194
A131: Maligna tumörer i mesotelial (kroppshåletäckande) vävnad och mjukvävnad | B131: 2009 | C131: 392 | D131: 64 | E131: 23 | F131: 456 | G131: 0.1632653061
A132: Maligna tumörer i mesotelial (kroppshåletäckande) vävnad och mjukvävnad | B132: 2010 | C132: 400 | D132: 66 | E132: 20 | F132: 466 | G132: 0.165
A133: Maligna tumörer i mesotelial (kroppshåletäckande) vävnad och mjukvävnad | B133: 2011 | C133: 430 | D133: 84 | E133: 9 | F133: 514 | G133: 0.1953488372
A134: Maligna tumörer i mesotelial (kroppshåletäckande) vävnad och mjukvävnad | B134: 2012 | C134: 442 | D134: 62 | E134: 20 | F134: 504 | G134: 0.1402714932
A135: Maligna tumörer i mesotelial (kroppshåletäckande) vävnad och mjukvävnad | B135: 2013 | C135: 408 | D135: 81 | E135: 16 | F135: 489 | G135: 0.1985294118
A136: Maligna tumörer i mesotelial (kroppshåletäckande) vävnad och mjukvävnad | B136: 2014 | C136: 430 | D136: 74 | E136: 29 | F136: =C136+D136 -> 504 | G136: =D136/C136 -> 0.1720930233
A137: Maligna tumörer i mesotelial (kroppshåletäckande) vävnad och mjukvävnad | B137: 2015 | C137: 457 | D137: 74 | E137: 21 | F137: 531 | G137: 0.1619256018
A138: Maligna tumörer i mesotelial (kroppshåletäckande) vävnad och mjukvävnad | B138: 2016 | C138: 423 | D138: 88 | E138: 26 | F138: 511 | G138: 0.2080378251
A139: Maligna tumörer i mesotelial (kroppshåletäckande) vävnad och mjukvävnad | B139: 2017 | C139: 387 | D139: 94 | E139: 31 | F139: 481 | G139: 0.2428940568
A140: Maligna tumörer i mesotelial (kroppshåletäckande) vävnad och mjukvävnad | B140: 2018 | C140: 371 | D140: 78 | E140: 40 | F140: 449 | G140: 0.2102425876
A141: Maligna tumörer i mesotelial (kroppshåletäckande) vävnad och mjukvävnad | B141: 2019 | C141: 356 | D141: 60 | E141: 29 | F141: 416 | G141: 0.1685393258
A142: Maligna tumörer i tyreoidea och andra endokrina körtlar | B142: 2005 | C142: 1154 | D142: 22 | E142: 9 | F142: 1176 | G142: 0.01906412478
A143: Maligna tumörer i tyreoidea och andra endokrina körtlar | B143: 2006 | C143: 1172 | D143: 21 | E143: 7 | F143: 1193 | G143: 0.01791808874
A144: Maligna tumörer i tyreoidea och andra endokrina körtlar | B144: 2007 | C144: 1134 | D144: 28 | E144: 13 | F144: 1162 | G144: 0.02469135802
A145: Maligna tumörer i tyreoidea och andra endokrina körtlar | B145: 2008 | C145: 1240 | D145: 24 | E145: 9 | F145: 1264 | G145: 0.01935483871
A146: Maligna tumörer i tyreoidea och andra endokrina körtlar | B146: 2009 | C146: 1355 | D146: 16 | E146: 12 | F146: 1371 | G146: 0.01180811808
A147: Maligna tumörer i tyreoidea och andra endokrina körtlar | B147: 2010 | C147: 1349 | D147: 21 | E147: 6 | F147: 1370 | G147: 0.01556708673
A148: Maligna tumörer i tyreoidea och andra endokrina körtlar | B148: 2011 | C148: 1507 | D148: 14 | E148: 10 | F148: 1521 | G148: 0.009289980093
A149: Maligna tumörer i tyreoidea och andra endokrina körtlar | B149: 2012 | C149: 1696 | D149: 8 | E149: 6 | F149: 1704 | G149: 0.004716981132
A150: Maligna tumörer i tyreoidea och andra endokrina körtlar | B150: 2013 | C150: 1808 | D150: 8 | E150: 7 | F150: 1816 | G150: 0.004424778761
A151: Maligna tumörer i tyreoidea och andra endokrina körtlar | B151: 2014 | C151: 1686 | D151: 17 | E151: 10 | F151: 1703 | G151: 0.01008303677
A152: Maligna tumörer i tyreoidea och andra endokrina körtlar | B152: 2015 | C152: 1725 | D152: 16 | E152: 8 | F152: 1741 | G152: 0.009275362319
A153: Maligna tumörer i tyreoidea och andra endokrina körtlar | B153: 2016 | C153: 1823 | D153: 16 | E153: 13 | F153: 1839 | G153: 0.008776741635
A154: Maligna tumörer i tyreoidea och andra endokrina körtlar | B154: 2017 | C154: 1736 | D154: 18 | E154: 17 | F154: 1754 | G154: 0.01036866359
A155: Maligna tumörer i tyreoidea och andra endokrina körtlar | B155: 2018 | C155: 1763 | D155: 20 | E155: 9 | F155: 1783 | G155: 0.01134429949
A156: Maligna tumörer i tyreoidea och andra endokrina körtlar | B156: 2019 | C156: 1812 | D156: 12 | E156: 5 | F156: 1824 | G156: 0.006622516556
A157: Maligna tumörer i urinorganen | B157: 2005 | C157: 3363 | D157: 316 | E157: 101 | F157: 3679 | G157: 0.09396372287
A158: Maligna tumörer i urinorganen | B158: 2006 | C158: 3565 | D158: 282 | E158: 91 | F158: 3847 | G158: 0.07910238429
A159: Maligna tumörer i urinorganen | B159: 2007 | C159: 3621 | D159: 279 | E159: 88 | F159: 3900 | G159: 0.07705053853
A160: Maligna tumörer i urinorganen | B160: 2008 | C160: 3650 | D160: 249 | E160: 71 | F160: 3899 | G160: 0.06821917808
A161: Maligna tumörer i urinorganen | B161: 2009 | C161: 3699 | D161: 235 | E161: 77 | F161: 3934 | G161: 0.06353068397
A162: Maligna tumörer i urinorganen | B162: 2010 | C162: 3826 | D162: 226 | E162: 69 | F162: 4052 | G162: 0.05906952431
A163: Maligna tumörer i urinorganen | B163: 2011 | C163: 3948 | D163: 299 | E163: 62 | F163: 4247 | G163: 0.07573454914
A164: Maligna tumörer i urinorganen | B164: 2012 | C164: 3867 | D164: 205 | E164: 76 | F164: 4072 | G164: 0.05301267132
A165: Maligna tumörer i urinorganen | B165: 2013 | C165: 4448 | D165: 216 | E165: 56 | F165: 4664 | G165: 0.04856115108
A166: Maligna tumörer i urinorganen | B166: 2014 | C166: 4400 | D166: 218 | E166: 90 | F166: 4618 | G166: 0.04954545455
A167: Maligna tumörer i urinorganen | B167: 2015 | C167: 4710 | D167: 201 | E167: 83 | F167: 4911 | G167: 0.04267515924
A168: Maligna tumörer i urinorganen | B168: 2016 | C168: 4799 | D168: 185 | E168: 69 | F168: 4984 | G168: 0.03854969785
A169: Maligna tumörer i urinorganen | B169: 2017 | C169: 4855 | D169: 189 | E169: 91 | F169: 5044 | G169: 0.03892893924
A170: Maligna tumörer i urinorganen | B170: 2018 | C170: 5035 | D170: 155 | E170: 85 | F170: 5190 | G170: 0.03078450844
A171: Maligna tumörer i urinorganen | B171: 2019 | C171: 4741 | D171: 112 | E171: 92 | F171: 4853 | G171: 0.02362370808
A172: Maligna tumörer i öga, hjärnan och andra delar av centrala nervsystemet | B172: 2005 | C172: 1504 | D172: 249 | E172: 42 | F172: 1753 | G172: 0.1655585106
A173: Maligna tumörer i öga, hjärnan och andra delar av centrala nervsystemet | B173: 2006 | C173: 1464 | D173: 258 | E173: 34 | F173: 1722 | G173: 0.1762295082
A174: Maligna tumörer i öga, hjärnan och andra delar av centrala nervsystemet | B174: 2007 | C174: 1452 | D174: 244 | E174: 52 | F174: 1696 | G174: 0.1680440771
A175: Maligna tumörer i öga, hjärnan och andra delar av centrala nervsystemet | B175: 2008 | C175: 1460 | D175: 209 | E175: 41 | F175: 1669 | G175: 0.1431506849
A176: Maligna tumörer i öga, hjärnan och andra delar av centrala nervsystemet | B176: 2009 | C176: 1492 | D176: 203 | E176: 31 | F176: 1695 | G176: 0.1360589812
A177: Maligna tumörer i öga, hjärnan och andra delar av centrala nervsystemet | B177: 2010 | C177: 1669 | D177: 164 | E177: 23 | F177: 1833 | G177: 0.09826243259
A178: Maligna tumörer i öga, hjärnan och andra delar av centrala nervsystemet | B178: 2011 | C178: 1617 | D178: 163 | E178: 34 | F178: 1780 | G178: 0.1008039579
A179: Maligna tumörer i öga, hjärnan och andra delar av centrala nervsystemet | B179: 2012 | C179: 1629 | D179: 172 | E179: 17 | F179: 1801 | G179: 0.1055862492
A180: Maligna tumörer i öga, hjärnan och andra delar av centrala nervsystemet | B180: 2013 | C180: 1685 | D180: 149 | E180: 20 | F180: 1834 | G180: 0.0884272997
A181: Maligna tumörer i öga, hjärnan och andra delar av centrala nervsystemet | B181: 2014 | C181: 1716 | D181: 162 | E181: 18 | F181: 1878 | G181: 0.09440559441
A182: Maligna tumörer i öga, hjärnan och andra delar av centrala nervsystemet | B182: 2015 | C182: 1709 | D182: 144 | E182: 18 | F182: 1853 | G182: 0.08425980105
A183: Maligna tumörer i öga, hjärnan och andra delar av centrala nervsystemet | B183: 2016 | C183: 1606 | D183: 114 | E183: 22 | F183: 1720 | G183: 0.07098381071
A184: Maligna tumörer i öga, hjärnan och andra delar av centrala nervsystemet | B184: 2017 | C184: 1701 | D184: 102 | E184: 20 | F184: 1803 | G184: 0.05996472663
A185: Maligna tumörer i öga, hjärnan och andra delar av centrala nervsystemet | B185: 2018 | C185: 1598 | D185: 98 | E185: 26 | F185: 1696 | G185: 0.06132665832
A186: Maligna tumörer i öga, hjärnan och andra delar av centrala nervsystemet | B186: 2019 | C186: 1416 | D186: 71 | E186: 18 | F186: 1487 | G186: 0.05014124294
A187: Maligna tumörer med ofullständigt angivna, sekundära och icke specificerade lokalisationer | B187: 2005 | C187: 1404 | D187: 834 | E187: 490 | F187: 2238 | G187: 0.594017094
A188: Maligna tumörer med ofullständigt angivna, sekundära och icke specificerade lokalisationer | B188: 2006 | C188: 1465 | D188: 836 | E188: 541 | F188: 2301 | G188: 0.5706484642
A189: Maligna tumörer med ofullständigt angivna, sekundära och icke specificerade lokalisationer | B189: 2007 | C189: 1281 | D189: 777 | E189: 507 | F189: 2058 | G189: 0.606557377
A190: Maligna tumörer med ofullständigt angivna, sekundära och icke specificerade lokalisationer | B190: 2008 | C190: 1362 | D190: 850 | E190: 455 | F190: 2212 | G190: 0.624082232
A191: Maligna tumörer med ofullständigt angivna, sekundära och icke specificerade lokalisationer | B191: 2009 | C191: 1441 | D191: 791 | E191: 421 | F191: 2232 | G191: 0.5489243581
A192: Maligna tumörer med ofullständigt angivna, sekundära och icke specificerade lokalisationer | B192: 2010 | C192: 1296 | D192: 849 | E192: 433 | F192: 2145 | G192: 0.6550925926
A193: Maligna tumörer med ofullständigt angivna, sekundära och icke specificerade lokalisationer | B193: 2011 | C193: 1350 | D193: 833 | E193: 445 | F193: 2183 | G193: 0.617037037
A194: Maligna tumörer med ofullständigt angivna, sekundära och icke specificerade lokalisationer | B194: 2012 | C194: 1314 | D194: 916 | E194: 480 | F194: 2230 | G194: 0.697108067
A195: Maligna tumörer med ofullständigt angivna, sekundära och icke specificerade lokalisationer | B195: 2013 | C195: 1307 | D195: 932 | E195: 479 | F195: 2239 | G195: 0.7130833971
A196: Maligna tumörer med ofullständigt angivna, sekundära och icke specificerade lokalisationer | B196: 2014 | C196: 1253 | D196: 811 | E196: 497 | F196: 2064 | G196: 0.6472466081
A197: Maligna tumörer med ofullständigt angivna, sekundära och icke specificerade lokalisationer | B197: 2015 | C197: 1223 | D197: 808 | E197: 552 | F197: 2031 | G197: 0.6606704824
A198: Maligna tumörer med ofullständigt angivna, sekundära och icke specificerade lokalisationer | B198: 2016 | C198: 894 | D198: 751 | E198: 465 | F198: 1645 | G198: 0.8400447427
A199: Maligna tumörer med ofullständigt angivna, sekundära och icke specificerade lokalisationer | B199: 2017 | C199: 839 | D199: 750 | E199: 474 | F199: 1589 | G199: 0.8939213349
A200: Maligna tumörer med ofullständigt angivna, sekundära och icke specificerade lokalisationer | B200: 2018 | C200: 790 | D200: 734 | E200: 504 | F200: =C200+D200 -> 1524 | G200: =D200/C200 -> 0.9291139241
A201: Maligna tumörer med ofullständigt angivna, sekundära och icke specificerade lokalisationer | B201: 2019 | C201: 662 | D201: 570 | E201: 495 | F201: 1232 | G201: 0.8610271903
A202: Melanom och andra maligna tumörer i huden | B202: 2005 | C202: 5914 | D202: 124 | E202: 43 | F202: 6038 | G202: 0.02096719648
A203: Melanom och andra maligna tumörer i huden | B203: 2006 | C203: 6538 | D203: 107 | E203: 49 | F203: 6645 | G203: 0.01636586112
... 29 more rows

Sheet DCI per ICD-avsnitt
A1: Tabell 5. Antal nya cancerfall per ICD10-avsnitt, registrerade i cancerregistret eller dödsorsaksregistret, 2005-2019
A2: Number of new cancers recorded in the cancer or cause of death register, by diagnostic grouping, 2005-2019
A6: ICD10-avsnitt | B6: Cancerregistret | C6: DCI* | D6: DCO | E6: Cancerregistret+DCI | F6: Ökning med DCI, %
A7: Andra leukemier med specificerad celltyp | B7: 126 | C7: 52 | D7: 2 | E7: =B7+C7 -> 178 | F7: =C7/B7 -> 0.4126984127
A8: Andra maligna tumörer i huden | B8: 92624 | C8: 403 | D8: 252 | E8: =B8+C8 -> 93027 | F8: =C8/B8 -> 0.004350924167
A9: Andra och icke specificerade typer av non-Hodgkin-lymfom | B9: 4060 | C9: 375 | D9: 336 | E9: 4435 | F9: 0.09236453202
A10: Andra specificerade typer av T/NK-cellslymfom | B10: 0 | C10: 7 | D10: 0 | E10: 7
A11: Andra tumörer av osäker eller okänd natur i lymfatisk, blodbildande och besläktad vävnad | B11: 5305 | C11: 793 | D11: 158 | E11: 6098 | F11: 0.1494816211
A12: Follikulärt lymfom | B12: 5308 | C12: 37 | D12: 1 | E12: 5345 | F12: 0.006970610399
A13: Hodgkins lymfom | B13: 3099 | C13: 50 | D13: 28 | E13: 3149 | F13: 0.01613423685
A14: Icke-follikulärt lymfom | B14: 14624 | C14: 265 | D14: 16 | E14: 14889 | F14: 0.01812089716
A15: Kaposis sarkom | B15: 1 | C15: 9 | D15: 3 | E15: 10 | F15: 9
A16: Leukemi med icke specificerad celltyp | B16: 312 | C16: 183 | D16: 100 | E16: 495 | F16: 0.5865384615
A17: Lymfatisk leukemi | B17: 11334 | C17: 772 | D17: 196 | E17: 12106 | F17: 0.06811364037
A18: Malign tumör i andra endokrina körtlar och därmed besläktade vävnader | B18: 13534 | C18: 66 | D18: 12 | E18: 13600 | F18: 0.004876607064
A19: Malign tumör i andra och icke specificerade delar av gallvägarna | B19: 3576 | C19: 1365 | D19: 358 | E19: 4941 | F19: 0.3817114094
A20: Malign tumör i andra och icke specificerade kvinnliga könsorgan | B20: 1608 | C20: 130 | D20: 444 | E20: 1738 | F20: 0.08084577114
A21: Malign tumör i andra och icke specificerade manliga könsorgan | B21: 158 | C21: 5 | D21: 16 | E21: 163 | F21: 0.03164556962
A22: Malign tumör i andra och icke specificerade stora spottkörtlar | B22: 367 | C22: 15 | D22: 9 | E22: 382 | F22: 0.0408719346
A23: Malign tumör i andra och icke specificerade urinorgan | B23: 711 | C23: 49 | D23: 69 | E23: 760 | F23: 0.06891701828
A24: Malign tumör i annan bindväv och mjukvävnad | B24: 4530 | C24: 412 | D24: 208 | E24: 4942 | F24: 0.09094922737
A25: Malign tumör i annan och icke specificerad del av munhålan | B25: 844 | C25: 18 | D25: 15 | E25: 862 | F25: 0.02132701422
A26: Malign tumör i annan och icke specificerad del av tungan | B26: 2398 | C26: 18 | D26: 21 | E26: 2416 | F26: 0.007506255213
A27: Malign tumör i anus och analkanalen | B27: 2497 | C27: 97 | D27: 25 | E27: 2594 | F27: 0.03884661594
A28: Malign tumör i ben och extremitetsledbrosk | B28: 582 | C28: 37 | D28: 9 | E28: 619 | F28: 0.06357388316
A29: Malign tumör i ben och ledbrosk med annan och icke specificerad lokalisation | B29: 615 | C29: 109 | D29: 136 | E29: 724 | F29: 0.1772357724
A30: Malign tumör i binjure | B30: 827 | C30: 71 | D30: 43 | E30: 898 | F30: 0.08585247884
A31: Malign tumör i bronk och lunga | B31: 59654 | C31: 7011 | D31: 2873 | E31: 66665 | F31: 0.1175277433
A32: Malign tumör i bröstkörtel | B32: 131214 | C32: 1518 | D32: 1878 | E32: 132732 | F32: 0.01156888747
A33: Malign tumör i bukhinnan och retroperitonealrummet (utrymmet bakom bukhinnan) | B33: 1228 | C33: 223 | D33: 32 | E33: 1451 | F33: 0.1815960912
A34: Malign tumör i centrala nervsystemets hinnor | B34: 7772 | C34: 630 | D34: 238 | E34: 8402 | F34: 0.08106021616
A35: Malign tumör i fossa piriformis | B35: 229 | C35: 1 | E35: 230 | F35: 0.004366812227
A36: Malign tumör i gallblåsan | B36: 2665 | C36: 635 | D36: 129 | E36: 3300 | F36: 0.2382739212
A37: Malign tumör i gom | B37: 550 | C37: 5 | D37: 4 | E37: 555 | F37: 0.009090909091
A38: Malign tumör i hjärnan | B38: 11598 | C38: 1762 | D38: 118 | E38: 13360 | F38: 0.1519227453
A39: Malign tumör i hjärtat, mediastinum (lungmellanrummet) och lungsäcken | B39: 1926 | C39: 120 | D39: 95 | E39: 2046 | F39: 0.06230529595
A40: Malign tumör i hypofarynx (svalget i höjd med struphuvudet) | B40: 691 | C40: 14 | D40: 6 | E40: 705 | F40: 0.02026049204
A41: Malign tumör i levern och intrahepatiska gallgångarna | B41: 9714 | C41: 2961 | D41: 1069 | E41: 12675 | F41: 0.3048177888
A42: Malign tumör i livmoderhalsen | B42: 7467 | C42: 133 | D42: 95 | E42: 7600 | F42: 0.01781170483
A43: Malign tumör i livmoderkroppen | B43: 20549 | C43: 184 | D43: 97 | E43: 20733 | F43: 0.008954207017
A44: Malign tumör i livmodern med icke specificerad lokalisation | B44: 1960 | C44: 44 | D44: 325 | E44: 2004 | F44: 0.02244897959
A45: Malign tumör i luftstrupen | B45: 63 | C45: 8 | D45: 17 | E45: 71 | F45: 0.126984127
A46: Malign tumör i läpp | B46: 2332 | C46: 13 | D46: 11 | E46: 2345 | F46: 0.005574614065
A47: Malign tumör i magsäcken | B47: 12909 | C47: 683 | D47: 390 | E47: 13592 | F47: 0.0529088233
A48: Malign tumör i matstrupen | B48: 6899 | C48: 460 | D48: 160 | E48: 7359 | F48: 0.0666763299
A49: Malign tumör i moderkakan | B49: 47 | D49: 1 | E49: 47 | F49: 0
A50: Malign tumör i munbotten | B50: 800 | C50: 10 | D50: 3 | E50: 810 | F50: 0.0125
A51: Malign tumör i njurbäcken | B51: 2515 | C51: 278 | D51: 29 | E51: 2793 | F51: 0.1105367793
A52: Malign tumör i njure med undantag för njurbäcken | B52: 17515 | C52: 2262 | D52: 687 | E52: 19777 | F52: 0.1291464459
A53: Malign tumör i näsans bihålor | B53: 433 | C53: 20 | D53: 5 | E53: 453 | F53: 0.04618937644
A54: Malign tumör i näshåla och mellanöra | B54: 635 | C54: 14 | D54: 5 | E54: 649 | F54: 0.02204724409
A55: Malign tumör i orofarynx (mellansvalget) | B55: 368 | C55: 6 | D55: 2 | E55: 374 | F55: 0.01630434783
A56: Malign tumör i pankreas | B56: 18086 | C56: 6977 | D56: 982 | E56: 25063 | F56: 0.3857679973
A57: Malign tumör i parotiskörtel | B57: 1243 | C57: 39 | D57: 26 | E57: 1282 | F57: 0.03137570394
A58: Malign tumör i penis | B58: 1545 | C58: 43 | D58: 17 | E58: 1588 | F58: 0.02783171521
A59: Malign tumör i perifera nerver och autonoma nervsystemet | B59: 290 | C59: 2 | D59: 41 | E59: 292 | F59: 0.006896551724
A60: Malign tumör i prostata | B60: 151451 | C60: 4255 | D60: 1529 | E60: 155706 | F60: 0.02809489538
A61: Malign tumör i rektosigmoidala gränszonen | B61: 381 | C61: 107 | D61: 36 | E61: 488 | F61: 0.280839895
A62: Malign tumör i rinofarynx (övre svalgrummet) | B62: 495 | C62: 14 | D62: 12 | E62: 509 | F62: 0.02828282828
A63: Malign tumör i ryggmärgen, kranialnerver och andra delar av centrala nervsystemet | B63: 2304 | C63: 80 | D63: 22 | E63: 2384 | F63: 0.03472222222
A64: Malign tumör i struphuvudet | B64: 2738 | C64: 43 | D64: 84 | E64: 2781 | F64: 0.01570489408
A65: Malign tumör i tandköttet | B65: 1465 | C65: 14 | D65: 2 | E65: 1479 | F65: 0.009556313993
A66: Malign tumör i testikel | B66: 5225 | C66: 23 | D66: 30 | E66: 5248 | F66: 0.004401913876
A67: Malign tumör i tjocktarmen | B67: 65101 | C67: 3471 | D67: 1586 | E67: 68572 | F67: 0.05331715335
A68: Malign tumör i tonsill | B68: 3186 | C68: 17 | D68: 13 | E68: 3203 | F68: 0.005335844319
A69: Malign tumör i tungbasen | B69: 1417 | C69: 14 | D69: 8 | E69: 1431 | F69: 0.009880028229
A70: Malign tumör i tunntarmen | B70: 4693 | C70: 235 | D70: 66 | E70: 4928 | F70: 0.05007457916
A71: Malign tumör i tymus | B71: 563 | C71: 14 | D71: 4 | E71: 577 | F71: 0.02486678508
A72: Malign tumör i tyreoidea | B72: 8599 | C72: 124 | D72: 83 | E72: =B72+C72 -> 8723 | F72: =C72/B72 -> 0.01442028143
A73: Malign tumör i uretär (urinledare) | B73: 1707 | C73: 46 | D73: 19 | E73: 1753 | F73: 0.02694786175
A74: Malign tumör i urinblåsan | B74: 40079 | C74: 732 | D74: 379 | E74: 40811 | F74: 0.01826392874
A75: Malign tumör i vagina | B75: 503 | C75: 15 | D75: 7 | E75: 518 | F75: 0.02982107356
A76: Malign tumör i vulva | B76: 2787 | C76: 83 | D76: 34 | E76: 2870 | F76: 0.02978112666
A77: Malign tumör i äggstock | B77: 9626 | C77: 513 | D77: 331 | E77: 10139 | F77: 0.05329316435
A78: Malign tumör i ändtarmen | B78: 30305 | C78: 744 | D78: 449 | E78: 31049 | F78: 0.02455040422
A79: Malign tumör i öga och närliggande vävnader | B79: 2044 | C79: 30 | D79: 26 | E79: 2074 | F79: 0.01467710372
A80: Malign tumör med annan och ofullständigt angiven lokalisation | B80: 3395 | C80: 763 | D80: 864 | E80: 4158 | F80: 0.224742268
A81: Malign tumör med annan och ofullständigt angiven lokalisation i läpp, munhåla och svalg | B81: 64 | C81: 6 | D81: 15 | E81: 70 | F81: 0.09375
A82: Malign tumör med annan och ofullständigt angiven lokalisation i matsmältningsorganen | B82: 827 | C82: 231 | D82: 847 | E82: 1058 | F82: 0.2793228537
A83: Malign tumör utan specificerad lokalisation | B83: 6946 | C83: 1206 | D83: 2764 | E83: 8152 | F83: 0.173625108
A84: Maligna immunoproliferativa sjukdomar | B84: 1128 | C84: 136 | D84: 29 | E84: 1264 | F84: 0.1205673759
A85: Maligna tumörer med annan och ofullständigt angiven lokalisation i andningsorganen och brösthålans | B85: 299 | C85: 32 | D85: 24 | E85: 331 | F85: 0.1070234114
A86: Malignt melanom i huden | B86: 50934 | C86: 718 | D86: 214 | E86: 51652 | F86: 0.01409667413
A87: Mesoteliom | C87: 448 | D87: 85 | E87: 448
A88: Mogna T/NK-cellslymfom | B88: 1940 | C88: 83 | D88: 14 | E88: 2023 | F88: 0.04278350515
A89: Monocytleukemi | B89: 472 | C89: 75 | D89: 8 | E89: 547 | F89: 0.1588983051
A90: Myelodysplastiska syndrom | B90: 4391 | C90: 1198 | D90: 343 | E90: 5589 | F90: 0.2728307903
A91: Myeloisk leukemi | B91: 7832 | C91: 441 | D91: 61 | E91: 8273 | F91: 0.05630745659
A92: Plasmacellstumörer | B92: 10508 | C92: 1044 | D92: 189 | E92: 11552 | F92: 0.099352874
A93: Polycythaemia vera (sjuklig ökning av antalet röda blodkroppar) | B93: 2522 | C93: 542 | D93: 140 | E93: 3064 | F93: 0.2149088025
A94: Sekundär malign tumör (metastas) i andningsorganen och matsmältningsorganen | B94: 3886 | C94: 5860 | D94: 1362 | E94: 9746 | F94: 1.507977355
A95: Sekundär malign tumör (metastas) med andra och icke specificerade lokalisationer | B95: 1727 | C95: 3517 | D95: 1921 | E95: 5244 | F95: 2.036479444
A96: Sekundär malign tumör (metastas) och icke specificerad malign tumör i lymfkörtlar | B96: 1927 | C96: 696 | D96: 116 | E96: 2623 | F96: 0.3611831863
A97: Tumör av osäker eller okänd natur i de endokrina körtlarna | B97: 0 | C97: 43 | D97: 194 | E97: 43
A98: Tumör av osäker eller okänd natur i hjärnan och andra delar av centrala nervsystemet | B98: 0 | C98: 771 | D98: 293 | E98: 771
A99: Övriga och icke specificerade maligna tumörer i lymfoid, blodbildande och besläktad vävnad | B99: 88 | C99: 51 | D99: 133 | E99: 139 | F99: 0.5795454545
A100: Källa: cancerregistret, dödsorsaksregistret, patientregistret, Socialstyrelsen
A101: * Daterade efter diagnosår i patientregistret
